fUSD/lending_fUSD_20250921
["ID","MTS","AMOUNT","RATE_DAILY","PERIOD"]
[386597010,1758412831568,150.0,0.00029502,120]
[386597251,1758413394274,165.19,0.00015902,2]
[386597322,1758413432089,-493.6022,0.000189,2]
[386597323,1758413432100,-300.0,0.00018913,2]
[386597324,1758413432111,-59.31498616,0.00018913,2]
[386597325,1758413432123,-240.68501384,0.00018913,2]
[386597326,1758413432136,-195.0,0.00018913,2]
[386597327,1758413432147,-265.02205888,0.00018925,2]
[386597328,1758413432157,-24.34131822,0.00018925,2]
[386597329,1758413432168,-170.65868178,0.00018925,2]
[386597330,1758413432178,-350.0,0.00019,2]
[386597331,1758413432187,-300.0,0.00019018,2]
[386597332,1758413432198,-187.68167101,0.0001909,2]
[386597333,1758413432207,-636.0,0.00019176,2]
[386597334,1758413432217,-249.0,0.00019176,2]
[386597335,1758413432227,-300.0,0.00019176,2]
[386597336,1758413432237,-300.0,0.00019176,2]
[386597337,1758413432247,-300.0,0.00019176,2]
[386597338,1758413432256,-1200.0,0.00019176,2]
[386597339,1758413432266,-500.0,0.00019177,2]
[386597340,1758413432276,-504.0529272,0.00019177,2]
[386597341,1758413432285,-500.0,0.00019177,2]
[386597342,1758413432295,-248.2412668,0.00019177,2]
[386597343,1758413432305,-500.0,0.00019177,2]
[386597344,1758413432315,-500.0,0.00019177,2]
[386597345,1758413432325,-500.0,0.00019177,2]
[386597346,1758413432334,-500.0,0.00019177,2]
[386597347,1758413432344,-546.29866102,0.00019177,2]
[386597348,1758413432354,-500.0,0.00019177,2]
[386597349,1758413432364,-500.0,0.00019177,2]
[386597350,1758413432373,-500.0,0.00019177,2]
[386597351,1758413432384,-500.0,0.00019177,2]
[386597352,1758413432394,-500.0,0.00019177,2]
[386597353,1758413432403,-500.0,0.00019177,2]
[386597354,1758413432413,-500.0,0.00019177,2]
[386597355,1758413432422,-500.0,0.00019177,2]
[386597356,1758413432432,-500.0,0.00019177,2]
[386597357,1758413432441,-53.26511402,0.00019177,2]
[386597358,1758413432453,-105.31274148,0.00019177,2]
[386597359,1758413432463,-151.0,0.00019178,2]
[386597360,1758413432473,-1000.0,0.00019243,2]
[386597361,1758413432482,-151.0,0.00019744,2]
[386597362,1758413432492,-516.38316968,0.00019759,2]
[386597363,1758413432501,-160.0,0.00019759,2]
[386597364,1758413432511,-156.98,0.00019762,2]
[386597365,1758413432520,-151.0,0.00019778,2]
[386597366,1758413432529,-151.0,0.00019799,2]
[386597367,1758413432539,-464.02,0.00019892,2]
[386597369,1758413432548,-1059.6154516,0.0001996,2]
[386597372,1758413432560,-1477.93154033,0.0001996,2]
[386597374,1758413432572,-1223.29132686,0.0001996,2]
[386597377,1758413432588,-2312.88470714,0.0001996,2]
[386597379,1758413432601,-294.84302077,0.0001996,2]
[386597381,1758413432612,-379.7639533,0.0001996,2]
[386597383,1758413432624,-1111.13,0.0002,2]
[386597385,1758413432633,-244.08217673,0.00020002,2]
[386597387,1758413432645,-287.45782327,0.00020002,2]
[386597389,1758413432654,-200.0,0.00020038,2]
[386597391,1758413432664,-904.27157673,0.00020038,2]
[386597394,1758413432676,-95.72842327,0.00020038,2]
[386597396,1758413432686,-519.03,0.00020135,2]
[386597398,1758413432699,-64.16701215,0.00020195,4]
[386597404,1758413432744,-151.0,0.0001971,2]
[386597407,1758413432754,-85.83298785,0.00020195,4]
[386597410,1758413432764,-150.0,0.00020195,4]
[386597412,1758413432774,-150.0,0.00020195,4]
[386597414,1758413432783,-150.0,0.00020195,4]
[386597416,1758413432793,-150.0,0.00020195,4]
[386597418,1758413432802,-150.0,0.00020195,4]
[386597420,1758413432811,-150.0,0.00020195,4]
[386597422,1758413432821,-150.0,0.00020195,4]
[386597424,1758413432831,-150.0,0.00020195,4]
[386597426,1758413432840,-11444.61,0.00020304,2]
[386597428,1758413432850,-200.0,0.00020434,2]
[386597430,1758413432860,-165.52,0.00020459,2]
[386597432,1758413432870,-250.0,0.0002079,2]
[386597434,1758413432879,-250.0,0.0002079,2]
[386597436,1758413432889,-2000.0,0.0002079,3]
[386597438,1758413432899,-300.0,0.0002079,2]
[386597440,1758413432908,-300.0,0.0002079,2]
[386597442,1758413432918,-195.0,0.0002079,2]
[386597444,1758413432928,-500.0,0.0002079,2]
[386597446,1758413432938,-500.0,0.0002079,2]
[386597448,1758413432948,-500.0,0.0002079,2]
[386597450,1758413432957,-500.0,0.0002079,2]
[386597452,1758413432968,-250.0,0.0002079,2]
[386597454,1758413432978,-300.0,0.0002079,2]
[386597456,1758413432987,-300.0,0.0002079,2]
[386597458,1758413432996,-195.0,0.0002079,2]
[386597459,1758413433006,-150.0,0.0002079,2]
[386597460,1758413433015,-150.0,0.00020814,7]
[386597461,1758413433026,-464.02,0.00020886,2]
[386597462,1758413433036,-175.0,0.00020898,2]
[386597463,1758413433045,-420.0,0.00020898,2]
[386597464,1758413433059,-420.0,0.00020898,2]
[386597465,1758413433070,-175.0,0.00020986,2]
[386597466,1758413433080,-1680.0,0.00020999,2]
[386597467,1758413433091,-1581.2,0.00021113,2]
[386597469,1758413433101,-500.0,0.00021181,2]
[386597470,1758413433111,-156.98,0.00021282,2]
[386597472,1758413433123,-25.01750071,0.00021341,2]
[386597474,1758413433136,-379.76211519,0.00021341,2]
[386597477,1758413433148,-268.15097016,0.00021341,2]
[386597479,1758413433160,-827.06941394,0.00021341,2]
[386597481,1758413433170,-541.70048599,0.00021449,2]
[386597483,1758413433179,-200.0,0.00021449,2]
[386597485,1758413433189,-200.0,0.00021449,2]
[386597487,1758413433199,-500.0,0.00021449,2]
[386597489,1758413433208,-500.0,0.00021449,2]
[386597490,1758413433218,-500.0,0.00021449,2]
[386597492,1758413433228,-500.0,0.00021449,2]
[386597494,1758413433239,-500.0,0.00021449,2]
[386597496,1758413433249,-500.0,0.00021449,2]
[386597498,1758413433260,-200.0,0.00021449,2]
[386597500,1758413433271,-500.0,0.00021449,2]
[386597502,1758413433281,-500.0,0.00021449,2]
[386597504,1758413433292,-500.0,0.00021449,2]
[386597506,1758413433302,-256.51962417,0.00021449,2]
[386597508,1758413433315,-243.48037583,0.00021449,2]
[386597510,1758413433325,-500.0,0.00021449,2]
[386597512,1758413433335,-500.0,0.00021449,2]
[386597515,1758413433344,-500.0,0.00021449,2]
[386597517,1758413433354,-500.0,0.00021449,2]
[386597519,1758413433363,-500.0,0.00021449,2]
[386597521,1758413433374,-151.0,0.00021449,2]
[386597522,1758413433384,-151.0,0.00021449,2]
[386597524,1758413433394,-151.0,0.00021449,2]
[386597526,1758413433404,-151.0,0.00021449,2]
[386597528,1758413433415,-151.0,0.00021449,2]
[386597530,1758413433425,-151.0,0.00021449,2]
[386597532,1758413433435,-151.0,0.00021449,2]
[386597534,1758413433444,-151.0,0.00021449,2]
[386597536,1758413433455,-151.0,0.00021449,2]
[386597538,1758413433465,-151.0,0.00021449,2]
[386597541,1758413433476,-151.0,0.00021449,2]
[386597543,1758413433485,-151.0,0.00021449,2]
[386597545,1758413433495,-151.0,0.00021449,2]
[386597547,1758413433506,-151.0,0.00021449,2]
[386597549,1758413433519,-151.0,0.00021449,2]
[386597551,1758413433529,-151.0,0.00021449,2]
[386597553,1758413433540,-151.0,0.00021449,2]
[386597555,1758413433549,-151.0,0.00021449,2]
[386597557,1758413433560,-151.0,0.00021449,2]
[386597559,1758413433570,-151.0,0.00021449,2]
[386597561,1758413433580,-151.0,0.00021449,2]
[386597563,1758413433589,-151.0,0.00021449,2]
[386597565,1758413433600,-151.0,0.00021449,2]
[386597568,1758413433610,-151.0,0.00021449,2]
[386597570,1758413433620,-151.0,0.00021449,2]
[386597572,1758413433629,-151.0,0.00021449,2]
[386597573,1758413433638,-151.0,0.00021449,2]
[386597576,1758413433648,-151.0,0.00021449,2]
[386597578,1758413433658,-151.0,0.00021449,2]
[386597580,1758413433668,-151.0,0.00021449,2]
[386597582,1758413433678,-151.0,0.00021449,2]
[386597584,1758413433690,-151.0,0.00021449,2]
[386597586,1758413433702,-151.0,0.00021449,2]
[386597588,1758413433712,-151.0,0.00021449,2]
[386597590,1758413433722,-151.0,0.00021449,2]
[386597592,1758413433732,-465.49019188,0.00021735,7]
[386597594,1758413433741,-610.288,0.00021738,2]
[386597596,1758413433751,-215.0,0.00021811,2]
[386597598,1758413433760,-4591.64765691,0.00021816,2]
[386597600,1758413433772,-309.34377538,0.00021817,2]
[386597642,1758413434170,-323.20103687,0.00020897,2]
[386597644,1758413434179,-212.98690168,0.00020897,2]
[386597646,1758413434189,-356.96720262,0.00021817,2]
[386597648,1758413434198,-1624.24574888,0.00021817,2]
[386597650,1758413434208,-23419.02198336,0.00021817,2]
[386597652,1758413434218,-187.0324554,0.00021817,2]
[386597654,1758413434227,-864.05827832,0.00021877,2]
[386597656,1758413434237,-464.02,0.00021881,2]
[386597658,1758413434247,-9457.68427565,0.00021891,2]
[386597660,1758413434256,-809.95853118,0.00021907,2]
[386597662,1758413434266,-1465.26,0.00021907,2]
[386597664,1758413434276,-23419.02198329,0.00021908,2]
[386597666,1758413434285,-5232.03724739,0.00021914,2]
[386597669,1758413434295,-151.0,0.00021914,2]
[386597671,1758413434304,-400.0,0.00021917,2]
[386597673,1758413434314,-209.53766979,0.00021917,2]
[386597675,1758413434324,-400.0,0.00021917,2]
[386597677,1758413434334,-400.0,0.00021917,2]
[386597679,1758413434345,-619.3,0.00021917,2]
[386597681,1758413434354,-1120.26,0.00021917,2]
[386597683,1758413434364,-400.0,0.00021917,2]
[386597685,1758413434373,-400.0,0.00021917,2]
[386597687,1758413434384,-400.0,0.00021917,2]
[386597689,1758413434394,-400.0,0.00021917,2]
[386597691,1758413434403,-400.0,0.00021917,2]
[386597693,1758413434412,-408.25,0.00021917,2]
[386597695,1758413434422,-400.0,0.00021917,2]
[386597697,1758413434432,-448.42,0.00021917,2]
[386597699,1758413434442,-400.0,0.00021917,2]
[386597701,1758413434452,-543.89045345,0.00021917,2]
[386597703,1758413434462,-496.14,0.00021917,2]
[386597705,1758413434471,-400.0,0.00021917,2]
[386597707,1758413434483,-400.0,0.00021917,2]
[386597709,1758413434493,-1013.99,0.00021917,2]
[386597711,1758413434502,-400.0,0.00021917,2]
[386597713,1758413434512,-400.0,0.00021917,2]
[386597715,1758413434521,-400.0,0.00021917,2]
[386597717,1758413434531,-400.0,0.00021917,2]
[386597719,1758413434542,-865.02,0.00021917,2]
[386597722,1758413434554,-400.0,0.00021917,2]
[386597724,1758413434563,-400.0,0.00021917,2]
[386597726,1758413434574,-400.0,0.00021917,2]
[386597728,1758413434583,-400.0,0.00021917,2]
[386597730,1758413434592,-400.0,0.00021917,2]
[386597732,1758413434601,-400.0,0.00021917,2]
[386597734,1758413434611,-400.0,0.00021917,2]
[386597736,1758413434621,-523.2,0.00021917,2]
[386597738,1758413434630,-400.0,0.00021917,2]
[386597740,1758413434640,-400.0,0.00021917,2]
[386597742,1758413434650,-400.0,0.00021917,2]
[386597744,1758413434660,-400.0,0.00021917,2]
[386597746,1758413434670,-400.0,0.00021917,2]
[386597748,1758413434680,-400.0,0.00021917,2]
[386597750,1758413434694,-1055.58,0.00021917,2]
[386597751,1758413434705,-400.0,0.00021917,2]
[386597753,1758413434715,-415.68563383,0.00021917,2]
[386597755,1758413434725,-400.0,0.00021917,2]
[386597757,1758413434735,-400.0,0.00021917,2]
[386597759,1758413434744,-400.0,0.00021917,2]
[386597761,1758413434754,-400.0,0.00021917,2]
[386597763,1758413434763,-400.0,0.00021917,2]
[386597764,1758413434772,-400.0,0.00021917,2]
[386597765,1758413434782,-400.0,0.00021917,2]
[386597766,1758413434792,-400.0,0.00021917,2]
[386597767,1758413434801,-400.0,0.00021917,2]
[386597768,1758413434811,-400.0,0.00021917,2]
[386597769,1758413434832,-400.0,0.00021917,2]
[386597770,1758413434843,-1057.65,0.00021917,2]
[386597771,1758413434853,-400.0,0.00021917,2]
[386597772,1758413434863,-400.0,0.00021917,2]
[386597773,1758413434874,-400.0,0.00021917,2]
[386597774,1758413434884,-400.0,0.00021917,2]
[386597775,1758413434894,-400.0,0.00021917,2]
[386597776,1758413434904,-400.0,0.00021917,2]
[386597777,1758413434913,-400.0,0.00021917,2]
[386597778,1758413434923,-477.8,0.00021917,2]
[386597779,1758413434934,-400.0,0.00021917,2]
[386597780,1758413434945,-400.0,0.00021917,2]
[386597781,1758413434955,-400.0,0.00021917,2]
[386597782,1758413434967,-400.0,0.00021917,2]
[386597783,1758413434979,-400.0,0.00021917,2]
[386597784,1758413434990,-549.43,0.00021917,2]
[386597785,1758413435000,-400.0,0.00021917,2]
[386597786,1758413435011,-400.0,0.00021917,2]
[386597787,1758413435021,-400.0,0.00021917,2]
[386597788,1758413435031,-449.64,0.00021917,2]
[386597789,1758413435041,-620.96,0.00021917,2]
[386597790,1758413435050,-400.0,0.00021917,2]
[386597791,1758413435060,-402.3450358,0.00021917,2]
[386597792,1758413435070,-400.0,0.00021917,2]
[386597793,1758413435080,-400.0,0.00021917,2]
[386597794,1758413435090,-454.66,0.00021917,2]
[386597795,1758413435100,-400.0,0.00021917,2]
[386597796,1758413435110,-400.0,0.00021917,2]
[386597797,1758413435120,-625.35,0.00021917,2]
[386597798,1758413435130,-407.35509334,0.00021917,2]
[386597799,1758413435140,-400.0,0.00021917,2]
[386597800,1758413435149,-400.0,0.00021917,2]
[386597801,1758413435159,-400.0,0.00021917,2]
[386597802,1758413435169,-400.0,0.00021917,2]
[386597803,1758413435178,-400.0,0.00021917,2]
[386597804,1758413435188,-697.53,0.00021917,2]
[386597805,1758413435198,-400.0,0.00021917,2]
[386597806,1758413435207,-400.0,0.00021917,2]
[386597807,1758413435217,-400.0,0.00021917,2]
[386597808,1758413435227,-400.0,0.00021917,2]
[386597809,1758413435237,-400.0,0.00021917,2]
[386597810,1758413435247,-400.0,0.00021917,2]
[386597811,1758413435256,-400.0,0.00021917,2]
[386597812,1758413435266,-517.8313257,0.00021917,2]
[386597813,1758413435276,-400.0,0.00021917,2]
[386597814,1758413435285,-400.0,0.00021917,2]
[386597815,1758413435295,-400.0,0.00021917,2]
[386597816,1758413435305,-400.0,0.00021917,2]
[386597817,1758413435315,-400.0,0.00021917,2]
[386597818,1758413435324,-400.0,0.00021917,2]
[386597819,1758413435334,-400.0,0.00021917,2]
[386597820,1758413435343,-400.0,0.00021917,2]
[386597821,1758413435353,-595.41,0.00021917,2]
[386597822,1758413435363,-400.0,0.00021917,2]
[386597823,1758413435373,-400.0,0.00021917,2]
[386597824,1758413435384,-400.0,0.00021917,2]
[386597825,1758413435394,-400.0,0.00021917,2]
[386597826,1758413435404,-400.0,0.00021917,2]
[386597827,1758413435415,-400.0,0.00021917,2]
[386597828,1758413435425,-438.8,0.00021917,2]
[386597829,1758413435435,-400.0,0.00021917,2]
[386597830,1758413435445,-400.0,0.00021917,2]
[386597831,1758413435455,-400.0,0.00021917,2]
[386597832,1758413435464,-400.0,0.00021917,2]
[386597833,1758413435474,-400.0,0.00021917,2]
[386597834,1758413435484,-257.30339131,0.00021917,2]
[386597835,1758413435494,-400.0,0.00021917,2]
[386597836,1758413435504,-400.0,0.00021917,2]
[386597837,1758413435514,-400.0,0.00021917,2]
[386597838,1758413435524,-400.0,0.00021917,2]
[386597839,1758413435534,-850.25,0.00021917,2]
[386597840,1758413435543,-400.0,0.00021917,2]
[386597841,1758413435553,-400.0,0.00021917,2]
[386597842,1758413435563,-929.06,0.00021917,2]
[386597843,1758413435573,-400.0,0.00021917,2]
[386597844,1758413435583,-400.0,0.00021917,2]
[386597845,1758413435592,-672.62,0.00021917,2]
[386597846,1758413435602,-400.0,0.00021917,2]
[386597847,1758413435612,-400.0,0.00021917,2]
[386597848,1758413435623,-400.0,0.00021917,2]
[386597849,1758413435635,-400.0,0.00021917,2]
[386597850,1758413435645,-400.0,0.00021917,2]
[386597851,1758413435655,-254.46170954,0.00021917,2]
[386597852,1758413435665,-400.0,0.00021917,2]
[386597853,1758413435675,-400.0,0.00021917,2]
[386597854,1758413435685,-400.0,0.00021917,2]
[386597855,1758413435697,-2052.99,0.00021917,2]
[386597856,1758413435707,-595.79,0.00021917,2]
[386597857,1758413435717,-400.0,0.00021917,2]
[386597858,1758413435726,-400.0,0.00021917,2]
[386597859,1758413435738,-400.0,0.00021917,2]
[386597860,1758413435748,-400.0,0.00021917,2]
[386597861,1758413435757,-400.0,0.00021917,2]
[386597862,1758413435768,-400.0,0.00021917,2]
[386597863,1758413435778,-400.0,0.00021917,2]
[386597864,1758413435787,-400.0,0.00021917,2]
[386597865,1758413435796,-400.0,0.00021917,2]
[386597866,1758413435805,-400.0,0.00021917,2]
[386597867,1758413435815,-1231.55,0.00021917,2]
[386597868,1758413435825,-400.0,0.00021917,2]
[386597869,1758413435835,-400.0,0.00021917,2]
[386597870,1758413435844,-560.81,0.00021917,2]
[386597871,1758413435854,-400.0,0.00021917,2]
[386597872,1758413435863,-400.0,0.00021917,2]
[386597873,1758413435873,-400.0,0.00021917,2]
[386597874,1758413435883,-400.0,0.00021917,2]
[386597875,1758413435893,-400.0,0.00021917,2]
[386597876,1758413435902,-400.0,0.00021917,2]
[386597877,1758413435911,-400.0,0.00021917,2]
[386597878,1758413435921,-400.0,0.00021917,2]
[386597879,1758413435930,-400.0,0.00021917,2]
[386597880,1758413435940,-400.0,0.00021917,2]
[386597881,1758413435950,-400.0,0.00021917,2]
[386597882,1758413435959,-400.0,0.00021917,2]
[386597883,1758413435969,-400.0,0.00021917,2]
[386597884,1758413435979,-400.0,0.00021917,2]
[386597885,1758413435988,-545.76,0.00021917,2]
[386597886,1758413435998,-400.0,0.00021917,2]
[386597887,1758413436008,-400.0,0.00021917,2]
[386597888,1758413436017,-1067.05,0.00021917,2]
[386597889,1758413436027,-572.48,0.00021917,2]
[386597890,1758413436037,-400.0,0.00021917,2]
[386597891,1758413436046,-835.16,0.00021917,2]
[386597892,1758413436056,-400.0,0.00021917,2]
[386597893,1758413436066,-400.0,0.00021917,2]
[386597894,1758413436075,-400.0,0.00021917,2]
[386597895,1758413436085,-400.0,0.00021917,2]
[386597896,1758413436095,-400.0,0.00021917,2]
[386597897,1758413436104,-400.0,0.00021917,2]
[386597898,1758413436113,-400.0,0.00021917,2]
[386597899,1758413436123,-466.00587737,0.00021917,2]
[386597900,1758413436132,-1449.11,0.00021917,2]
[386597901,1758413436142,-567.97,0.00021917,2]
[386597902,1758413436151,-400.0,0.00021917,2]
[386597903,1758413436161,-400.0,0.00021917,2]
[386597904,1758413436171,-433.74,0.00021917,2]
[386597905,1758413436180,-407.69,0.00021917,2]
[386597906,1758413436190,-400.0,0.00021917,2]
[386597907,1758413436199,-400.0,0.00021917,2]
[386597908,1758413436209,-400.0,0.00021917,2]
[386597909,1758413436219,-500.0,0.00021917,2]
[386597910,1758413436228,-500.0,0.00021917,2]
[386597911,1758413436237,-400.0,0.00021917,2]
[386597912,1758413436247,-1149.07,0.00021917,2]
[386597913,1758413436257,-400.0,0.00021917,2]
[386597914,1758413436266,-400.0,0.00021917,2]
[386597915,1758413436276,-400.0,0.00021917,2]
[386597916,1758413436286,-400.0,0.00021917,2]
[386597917,1758413436296,-565.96,0.00021917,2]
[386597918,1758413436306,-550.88,0.00021917,2]
[386597919,1758413436316,-400.0,0.00021917,2]
[386597920,1758413436325,-415.04,0.00021917,2]
[386597921,1758413436335,-400.0,0.00021917,2]
[386597922,1758413436345,-400.0,0.00021917,2]
[386597923,1758413436354,-400.0,0.00021917,2]
[386597924,1758413436363,-400.0,0.00021917,2]
[386597925,1758413436373,-400.0,0.00021917,2]
[386597926,1758413436383,-490.78555428,0.00021917,2]
[386597927,1758413436392,-400.0,0.00021917,2]
[386597928,1758413436402,-725.11,0.00021917,2]
[386597929,1758413436411,-400.0,0.00021917,2]
[386597930,1758413436421,-400.0,0.00021917,2]
[386597931,1758413436431,-400.0,0.00021917,2]
[386597932,1758413436441,-400.0,0.00021917,2]
[386597933,1758413436846,-421.13351694,0.00021917,2]
[386597934,1758413436857,-400.0,0.00021917,2]
[386597935,1758413436866,-400.0,0.00021917,2]
[386597936,1758413436876,-400.0,0.00021917,2]
[386597937,1758413436885,-400.0,0.00021917,2]
[386597938,1758413436895,-400.0,0.00021917,2]
[386597939,1758413436905,-400.0,0.00021917,2]
[386597940,1758413436914,-400.0,0.00021917,2]
[386597941,1758413436924,-763.81,0.00021917,2]
[386597942,1758413436933,-400.0,0.00021917,2]
[386597943,1758413436942,-400.0,0.00021917,2]
[386597944,1758413436952,-400.0,0.00021917,2]
[386597945,1758413436961,-500.0,0.00021917,2]
[386597946,1758413436971,-500.0,0.00021917,2]
[386597947,1758413436981,-400.0,0.00021917,2]
[386597948,1758413436991,-400.0,0.00021917,2]
[386597949,1758413437001,-522.39,0.00021917,2]
[386597950,1758413437010,-400.0,0.00021917,2]
[386597951,1758413437020,-417.24,0.00021917,2]
[386597952,1758413437030,-400.0,0.00021917,2]
[386597953,1758413437039,-553.99,0.00021917,2]
[386597954,1758413437048,-400.0,0.00021917,2]
[386597955,1758413437058,-400.0,0.00021917,2]
[386597956,1758413437067,-400.0,0.00021917,2]
[386597957,1758413437076,-818.86,0.00021917,2]
[386597958,1758413437086,-400.0,0.00021917,2]
[386597959,1758413437095,-387.77780113,0.00021917,2]
[386597960,1758413437104,-400.0,0.00021917,2]
[386597961,1758413437114,-400.0,0.00021917,2]
[386597962,1758413437124,-400.0,0.00021917,2]
[386597963,1758413437134,-400.0,0.00021917,2]
[386597964,1758413437144,-400.0,0.00021917,2]
[386597965,1758413437154,-681.08,0.00021917,2]
[386597966,1758413437163,-1490.92,0.00021917,2]
[386597967,1758413437174,-400.0,0.00021917,2]
[386597968,1758413437183,-400.0,0.00021917,2]
[386597969,1758413437193,-400.0,0.00021917,2]
[386597970,1758413437202,-400.0,0.00021917,2]
[386597971,1758413437211,-400.0,0.00021917,2]
[386597972,1758413437220,-406.77,0.00021917,2]
[386597973,1758413437230,-400.0,0.00021917,2]
[386597974,1758413437239,-400.0,0.00021917,2]
[386597975,1758413437249,-1484.45,0.00021917,2]
[386597976,1758413437260,-422.43719089,0.00021917,2]
[386597977,1758413437271,-400.0,0.00021917,2]
[386597978,1758413437280,-400.0,0.00021917,2]
[386597979,1758413437289,-400.0,0.00021917,2]
[386597980,1758413437299,-898.39,0.00021917,2]
[386597981,1758413437308,-400.0,0.00021917,2]
[386597982,1758413437317,-413.72,0.00021917,2]
[386597983,1758413437327,-400.0,0.00021917,2]
[386597984,1758413437337,-645.97,0.00021917,2]
[386597985,1758413437347,-833.99,0.00021917,2]
[386597986,1758413437357,-400.0,0.00021917,2]
[386597987,1758413437367,-400.0,0.00021917,2]
[386597988,1758413437376,-400.0,0.00021917,2]
[386597989,1758413437386,-400.0,0.00021917,2]
[386597990,1758413437395,-527.41,0.00021917,2]
[386597991,1758413437405,-400.0,0.00021917,2]
[386597992,1758413437415,-576.98,0.00021917,2]
[386597993,1758413437425,-400.0,0.00021917,2]
[386597994,1758413437436,-400.0,0.00021917,2]
[386597995,1758413437445,-400.0,0.00021917,2]
[386597996,1758413437455,-400.0,0.00021917,2]
[386597997,1758413437464,-400.0,0.00021917,2]
[386597998,1758413437474,-400.0,0.00021917,2]
[386597999,1758413437483,-400.0,0.00021917,2]
[386598000,1758413437493,-627.29,0.00021917,2]
[386598001,1758413437503,-400.0,0.00021917,2]
[386598002,1758413437513,-400.0,0.00021917,2]
[386598003,1758413437522,-400.0,0.00021917,2]
[386598004,1758413437532,-400.0,0.00021917,2]
[386598005,1758413437541,-400.0,0.00021917,2]
[386598006,1758413437551,-400.0,0.00021917,2]
[386598007,1758413437560,-400.0,0.00021917,2]
[386598008,1758413437569,-400.0,0.00021917,2]
[386598009,1758413437579,-400.0,0.00021917,2]
[386598010,1758413437589,-400.0,0.00021917,2]
[386598011,1758413437599,-400.0,0.00021917,2]
[386598012,1758413437609,-511.14,0.00021917,2]
[386598013,1758413437620,-400.0,0.00021917,2]
[386598014,1758413437631,-400.0,0.00021917,2]
[386598015,1758413437642,-400.0,0.00021917,2]
[386598016,1758413437653,-400.0,0.00021917,2]
[386598017,1758413437663,-553.09,0.00021917,2]
[386598018,1758413437672,-400.0,0.00021917,2]
[386598019,1758413437682,-400.0,0.00021917,2]
[386598020,1758413437694,-400.0,0.00021917,2]
[386598022,1758413437703,-839.57,0.00021917,2]
[386598024,1758413437713,-400.0,0.00021917,2]
[386598026,1758413437723,-1189.43,0.00021917,2]
[386598027,1758413437734,-400.0,0.00021917,2]
[386598029,1758413437743,-400.0,0.00021917,2]
[386598030,1758413437754,-400.69,0.00021917,2]
[386598031,1758413437765,-400.0,0.00021917,2]
[386598033,1758413437775,-1017.41,0.00021917,2]
[386598035,1758413437785,-1252.89,0.00021917,2]
[386598037,1758413437794,-400.0,0.00021917,2]
[386598040,1758413437803,-400.0,0.00021917,2]
[386598042,1758413437813,-400.0,0.00021917,2]
[386598044,1758413437822,-1522.49,0.00021917,2]
[386598046,1758413437831,-1329.71,0.00021917,2]
[386598048,1758413437841,-400.0,0.00021917,2]
[386598049,1758413437850,-400.0,0.00021917,2]
[386598050,1758413437859,-819.01,0.00021917,2]
[386598051,1758413437868,-400.0,0.00021917,2]